bitfinex/quotes_ETHUSD_20240717
["timestamp","ask_amount","ask_price","bid_price","bid_amount"]
[1721229232450,0.04893703,3465.2,3465.0,2.88599]
[1721229232631,1.25813093,3465.1,3464.8,2.88613]
[1721229232838,1.25813093,3465.1,3465.0,2.886]
[1721229233151,0.60315831,3465.5,3465.1,2.88586]
[1721229233365,1.25807505,3465.4,3465.1,2.88586]
[1721229233748,1.25807505,3465.4,3465.1,2.88585]
[1721229233951,1.25807505,3465.4,3465.2,2.88582]
[1721229234186,1.25807505,3465.4,3465.0,2.88592]
[1721229234392,1.86123336,3465.4,3465.0,2.88592]
[1721229234543,1.25807505,3465.3,3465.0,2.88593]
[1721229234974,1.86123336,3465.3,3465.0,2.88593]
[1721229235178,0.90473747,3465.5,3464.9,2.88605]
[1721229235179,1.25807505,3465.2,3464.9,2.88605]
[1721229235490,1.25807505,3465.1,3464.9,2.88605]
[1721229235671,1.25812397,3465.0,3464.9,2.88605]
[1721229235843,1.25812318,3465.0,3464.9,2.88603]
[1721229236047,0.60315831,3465.3,3465.0,2.88599]
[1721229236265,1.25812,3465.2,3465.0,2.88599]
[1721229236464,2.4799,3465.1,3464.2,2.448]
[1721229236664,1.86127831,3465.0,3464.5,3.87118]
[1721229236879,2.4799,3465.1,3464.7,2.88619]
[1721229236880,1.25812,3464.9,3464.7,2.88619]
[1721229237091,1.25812,3464.8,3464.7,2.88618]
[1721229237390,3.08305831,3465.1,3464.7,2.88618]
[1721229237681,1.25816131,3465.0,3464.7,2.88618]
[1721229237881,1.25816131,3465.0,3464.7,4.301911]
[1721229238439,1.25816131,3465.0,3464.7,1.415731]
[1721229238785,1.25821366,3464.9,3464.5,0.9848]
[1721229238992,4.74747197,3464.9,3464.4,7.4]
[1721229239274,1.86137197,3464.8,3464.2,2.88659]
[1721229239445,1.86137197,3464.7,3464.2,2.88659]
[1721229239646,1.25821366,3464.6,3464.2,2.88659]
[1721229239842,1.25821366,3464.6,3464.0,2.88679]
[1721229240177,0.60315831,3464.5,3464.1,2.88674]
[1721229240483,1.86137197,3464.4,3464.1,2.88674]
[1721229240681,1.25821366,3464.3,3464.1,2.88674]
[1721229240975,1.25821366,3464.3,3464.0,2.8868]
[1721229241178,1.2584566,3464.2,3464.0,4.448971]
[1721229241480,0.60315831,3464.4,3464.0,1.562171]
[1721229241653,1.25847511,3464.3,3463.9,2.88691]
[1721229241853,1.25847511,3464.3,3463.7,7.4]
[1721229241854,0.60315831,3464.2,3463.7,7.4]
[1721229242055,1.86163342,3464.1,3463.7,7.4]
[1721229242257,1.86163342,3464.0,3463.7,7.4]
[1721229242582,1.25861512,3463.9,3463.7,7.4]
[1721229242783,1.25861512,3463.9,3463.6,2.88712]
[1721229242784,0.04860303,3463.8,3463.6,2.88712]
[1721229243077,0.04860303,3463.8,3463.3,2.88737]
[1721229243243,0.04860303,3463.8,3463.3,4.749662]
[1721229243443,2.88683,3464.0,3463.1,2.88755]
[1721229243705,2.88683,3464.0,3463.2,2.8875]
[1721229243706,0.04853318,3463.7,3463.2,2.8875]
[1721229243861,2.88709,3463.7,3463.0,10.2876]
[1721229244062,1.30709822,3463.6,3462.8,2.88778]
[1721229244274,1.25885041,3463.5,3462.8,3.710146]
[1721229244477,0.60315831,3463.4,3462.9,2.88775]
[1721229244685,0.04831675,3463.5,3462.9,2.88775]
[1721229244988,1.30731311,3463.4,3462.9,2.88775]
[1721229245163,0.04844616,3463.4,3462.9,2.88775]
[1721229245362,0.04844616,3463.4,3462.9,3.7923496]
[1721229245565,3.49033831,3463.6,3462.9,3.7923496]
[1721229245875,1.30716592,3463.5,3462.9,3.7923496]
[1721229246062,4.14630871,3463.4,3462.3,10.28822]
[1721229246260,1.25895574,3463.3,3462.3,2.88822]
[1721229246480,0.04821155,3463.3,3462.3,2.88822]
[1721229246696,0.04821155,3463.3,3462.4,2.88815]
[1721229246697,2.8875,3463.2,3462.4,2.88815]
[1721229246907,2.8875,3463.2,3462.5,0.533615]
[1721229247185,0.04821536,3463.1,3462.5,0.533615]
[1721229247373,0.04821536,3463.1,3462.6,2.88798]
[1721229247576,0.04821536,3463.1,3462.5,0.533615]
[1721229247892,0.04821536,3463.1,3462.5,3.421695]
[1721229248183,0.04821536,3463.1,3462.4,2.88815]
[1721229248349,5.31084536,3463.1,3462.3,2.88824]
[1721229248549,5.31084536,3463.1,3462.2,5.33633]
[1721229248894,2.42321536,3463.1,3462.5,2.88807]
[1721229249191,0.04821536,3463.1,3462.6,3.465587]
[1721229249395,3.0,3463.4,3462.6,3.465587]
[1721229249700,0.04792536,3463.0,3462.6,3.465587]
[1721229249902,5.88734,3463.4,3462.6,3.465587]
[1721229250067,0.0473667,3462.9,3462.7,2.88791]
[1721229250265,5.88734,3463.4,3462.7,3.5232727]
[1721229250474,0.04788133,3462.8,3462.7,2.88791]
[1721229250948,2.88702,3463.8,3463.2,2.88748]
[1721229251151,3.04827084,3463.7,3463.2,2.88748]
[1721229251384,0.04827084,3463.7,3463.0,4.7846]
[1721229251591,2.3041,3464.3,3463.5,2.88717]
[1721229251765,2.3041,3464.3,3463.9,2.8869]
[1721229251949,0.04853244,3464.2,3463.9,2.8869]
[1721229252151,2.88644,3464.5,3463.7,2.88701]
[1721229252402,0.0484649,3464.4,3463.8,2.88699]
[1721229252560,0.0484649,3464.4,3463.7,2.88701]
[1721229252770,0.0484649,3464.4,3463.8,3.2290327]
[1721229253153,0.0484649,3464.4,3463.9,2.88691]
[1721229254465,5.3041,3464.7,3464.0,2.88683]
[1721229255086,3.04846912,3464.6,3464.0,2.88683]
[1721229255852,0.04846912,3464.6,3464.2,2.88666]
[1721229256056,0.04846912,3464.6,3464.3,2.448]
[1721229256324,2.298,3465.1,3464.7,2.88623]
[1721229256761,2.298,3465.1,3464.6,2.88632]
[1721229257156,5.18397,3465.1,3464.4,2.8865]
[1721229257398,0.0487082,3465.0,3464.5,2.88641]
[1721229257698,0.0487082,3465.0,3464.2,2.88663]
[1721229257867,0.0487082,3465.0,3464.2,4.330093]
[1721229258075,0.0487082,3465.0,3464.2,1.443463]
[1721229258602,2.9347582,3465.0,3464.3,2.88657]
[1721229258998,2.88608,3464.9,3464.3,2.88657]
[1721229259159,0.04869859,3464.8,3464.3,2.88657]
[1721229260464,0.04869859,3464.8,3464.4,2.88648]
[1721229260668,5.18396,3465.1,3464.4,2.88648]
[1721229260999,3.0,3465.6,3464.6,2.88633]
[1721229261000,0.04868457,3464.7,3464.6,2.88633]
[1721229261157,2.3632,3465.5,3464.6,2.88633]
[1721229261158,5.24878,3465.5,3464.6,2.88633]
[1721229261364,5.88568,3465.4,3464.8,2.88616]
[1721229261565,5.88568,3465.4,3464.7,2.8862]
[1721229261566,5.93454236,3465.4,3464.7,2.8862]
[1721229262731,5.93454236,3465.4,3464.8,2.88615]
[1721229263610,3.04886236,3465.4,3464.8,2.88615]
[1721229263817,0.04886236,3465.4,3464.8,2.88615]
[1721229264366,3.04886236,3465.4,3464.8,2.88615]
[1721229264572,0.04886236,3465.4,3464.8,2.88615]
[1721229265214,0.04886236,3465.4,3464.9,2.88607]
[1721229265617,0.04886236,3465.4,3465.1,2.448]
[1721229265816,2.2896,3465.9,3465.3,2.88568]
[1721229266117,2.2896,3465.9,3465.4,2.88566]
[1721229266286,2.2896,3465.9,3465.5,2.88557]
[1721229266797,2.2896,3465.9,3465.3,2.88571]
[1721229266999,2.2896,3465.9,3465.5,2.88558]
[1721229267324,5.17485,3465.9,3465.3,2.88567]
[1721229267522,5.17485,3465.9,3465.1,2.448]
[1721229267718,2.2896,3465.9,3465.3,2.88573]
[1721229268087,5.17486,3465.9,3465.3,2.88573]
[1721229268294,2.2896,3465.9,3465.4,2.88564]
[1721229268676,2.88515,3466.1,3465.4,2.88564]
[1721229269317,2.88517,3466.0,3465.4,2.88564]
[1721229269610,2.88526,3465.9,3465.2,2.88583]
[1721229270176,2.88526,3465.9,3465.2,2.88578]
[1721229270519,2.88526,3465.9,3465.3,2.88567]
[1721229270734,2.88514,3466.1,3465.4,2.88566]
[1721229271229,2.88517,3466.0,3465.4,2.88566]
[1721229271875,2.88525,3465.9,3465.2,2.88578]
[1721229272218,5.19924,3465.8,3464.7,2.448]
[1721229272438,5.19924,3465.8,3465.1,2.88584]
[1721229272731,5.24673622,3465.8,3465.1,2.88584]
[1721229273212,5.24673622,3465.8,3465.1,5.77168]
[1721229273412,5.24673622,3465.8,3465.2,2.88576]
[1721229274494,5.24673622,3465.8,3465.0,5.77194]
[1721229274700,2.88542,3465.7,3465.0,5.77194]
[1721229274989,0.04746629,3465.7,3465.3,2.88574]
[1721229275317,2.3139,3465.8,3465.3,2.88574]
[1721229275472,0.04743635,3465.6,3465.3,2.88574]
[1721229275677,2.88509,3466.1,3465.3,3.174314]
[1721229275876,2.88509,3466.1,3465.4,2.88566]
[1721229275877,0.04740641,3465.5,3465.4,2.88566]
[1721229276103,2.88509,3466.1,3465.4,2.88566]
[1721229276287,0.04747114,3465.5,3465.4,2.88566]
[1721229276503,2.88509,3466.1,3465.4,2.88566]
[1721229276820,0.04747114,3465.5,3465.4,2.88566]
[1721229277302,2.88526,3465.9,3465.2,2.88575]
[1721229277484,0.04747114,3465.5,3465.3,2.88574]
[1721229277677,2.88526,3465.9,3465.3,2.88574]
[1721229277920,0.0474412,3465.4,3465.3,2.88574]
[1721229278082,2.88526,3465.9,3465.3,2.88574]
[1721229278278,2.88545,3465.7,3464.9,2.88604]
[1721229278509,2.88551,3465.6,3464.9,2.88603]
[1721229278707,2.93301108,3465.6,3464.9,2.88603]
[1721229278978,2.3001,3465.2,3464.3,2.88656]
[1721229279180,2.3001,3465.1,3463.9,3.18707254]
[1721229279488,2.3001,3464.6,3464.1,2.88667]
[1721229279690,2.3001,3464.6,3464.2,2.88666]
[1721229279900,0.04686863,3464.5,3464.2,2.88666]
[1721229280312,5.88609,3464.9,3464.2,2.88666]
[1721229280619,0.04717252,3464.4,3464.2,2.88666]
[1721229280912,0.04712663,3464.3,3464.2,2.88666]
[1721229281117,3.0,3464.9,3464.4,2.88645]
[1721229281327,5.2575,3465.1,3464.4,2.88645]
[1721229281518,5.2575,3465.1,3464.4,5.7729]
[1721229282219,8.14342,3465.1,3464.4,2.88645]
[1721229282920,5.2575,3465.1,3464.4,2.88645]
[1721229283136,2.2575,3465.1,3464.4,3.463758]
[1721229283289,2.2575,3465.1,3464.6,2.88629]
[1721229283799,5.88576,3465.3,3464.6,2.88629]
[1721229285037,3.0,3465.3,3464.7,2.88624]
[1721229285217,5.88577,3465.3,3464.6,2.88629]
[1721229286223,2.88583,3465.2,3464.6,2.88629]
[1721229287006,3.0,3465.3,3464.6,2.88627]
[1721229287327,3.0,3465.3,3464.8,2.88615]
[1721229287528,0.04744887,3465.2,3464.8,2.88615]
[1721229287727,3.0,3465.4,3464.8,2.88615]
[1721229287933,0.04737114,3465.1,3465.0,5.772]
[1721229288390,2.3383,3465.9,3465.3,2.88568]
[1721229288653,5.22355,3465.9,3465.3,2.88568]
[1721229288823,0.04745128,3465.8,3465.2,2.88583]
[1721229289030,0.04745128,3465.8,3465.1,2.88591]
[1721229289337,0.04745128,3465.8,3464.8,0.577242]
[1721229289338,0.04745128,3465.8,3465.2,2.88578]
[1721229289657,0.04745128,3465.8,3465.2,2.88577]
[1721229290722,0.04745128,3465.8,3465.0,2.88596]
[1721229290939,0.04745128,3465.8,3465.2,2.88578]
[1721229291763,2.93279128,3465.8,3465.2,2.88578]
[1721229291946,2.8855,3465.7,3465.0,2.88596]
[1721229292350,0.04698457,3465.6,3465.0,2.88596]
[1721229292541,2.93249457,3465.6,3465.0,2.88596]
[1721229293112,0.04698457,3465.6,3465.1,2.88591]
[1721229293313,2.3383,3465.9,3465.1,2.88591]
[1721229293314,2.88536,3465.8,3465.1,2.88591]
[1721229293618,0.04694777,3465.5,3465.1,2.88591]
[1721229293978,2.3383,3465.9,3465.3,2.88569]
[1721229294281,5.22356,3465.9,3465.3,2.88569]
[1721229294484,4.19047524,3465.8,3465.2,2.88583]
[1721229294655,2.93241758,3465.8,3465.2,2.88583]
[1721229294859,2.88543,3465.7,3465.0,2.88596]
[1721229295274,0.04691547,3465.6,3465.0,2.88596]
[1721229295880,0.04691547,3465.6,3465.1,2.88591]
[1721229296083,0.04691547,3465.6,3465.0,2.88593]
[1721229296409,1.25809229,3465.5,3465.0,2.88593]
[1721229296781,0.04689226,3465.4,3465.0,5.77186]
[1721229296995,0.04689226,3465.4,3465.1,2.88591]
[1721229297395,0.60315831,3465.6,3465.1,2.88591]
[1721229297564,0.04686232,3465.3,3465.1,2.88591]
[1721229297762,0.60315831,3465.6,3465.1,2.88591]
[1721229298022,0.046822,3465.2,3465.1,2.88591]
[1721229298173,0.60315831,3465.6,3465.1,3.463094]
[1721229298374,0.046822,3465.2,3465.1,3.463094]
[1721229298587,0.60315831,3465.6,3465.1,3.463094]
[1721229298787,0.04680607,3465.2,3464.9,2.88603]
[1721229299002,1.86123739,3465.5,3464.9,2.88603]
[1721229299003,0.60315831,3465.5,3464.9,2.88603]
[1721229299210,0.04677613,3465.1,3464.9,2.88603]
[1721229299377,0.60315831,3465.5,3464.9,6.594067]
[1721229299577,0.04674618,3465.0,3464.9,3.708037]
[1721229299766,3.48876831,3465.5,3464.9,3.708097]
[1721229299976,0.04674618,3465.0,3464.7,2.88622]
[1721229300313,0.04675585,3464.9,3464.7,2.88622]
[1721229300491,3.48890831,3465.3,3464.7,2.88622]
[1721229300660,1.25819292,3465.2,3464.8,2.88616]
[1721229300864,1.25819292,3465.2,3464.9,0.577238]
[1721229301060,0.60315831,3465.3,3465.1,2.88591]
[1721229301321,0.60315831,3465.6,3465.1,2.88591]
[1721229301606,1.25801693,3465.5,3465.1,2.88591]
[1721229301806,1.25801693,3465.5,3465.4,2.88566]
[1721229301978,1.25801693,3465.6,3465.4,3.462794]
[1721229302524,1.25801693,3465.6,3465.2,2.88576]
[1721229302525,0.04719398,3465.5,3465.2,2.88576]
[1721229302816,1.25801693,3465.4,3465.2,2.88576]
[1721229303243,0.04716522,3465.3,3464.8,2.88616]
[1721229303458,1.25801693,3465.2,3464.8,2.88616]
[1721229303807,0.04711907,3465.1,3465.0,2.88599]
[1721229304110,0.60315831,3465.4,3465.0,3.463205]
[1721229304452,0.04711907,3465.1,3465.0,3.463205]
[1721229304653,0.60315831,3465.4,3464.8,2.88616]
[1721229304957,1.25810611,3465.3,3464.9,2.88608]
[1721229305102,1.30528506,3465.3,3464.9,2.88608]
[1721229305302,1.25810611,3465.2,3464.6,5.3343]
[1721229305498,1.30525512,3465.2,3464.8,2.8861]
[1721229305752,1.25810611,3465.1,3464.8,2.8861]
[1721229305917,1.30522518,3465.1,3464.8,5.7722]
[1721229306243,0.04711907,3465.1,3464.9,2.88608]
[1721229306541,0.60315831,3465.3,3464.9,2.88608]
[1721229306708,0.04708913,3465.0,3464.9,2.88608]
[1721229307040,0.60315831,3465.2,3464.9,3.708098]
[1721229307232,0.04716173,3465.0,3464.9,3.708098]
[1721229307741,0.60315831,3465.3,3465.0,2.88593]
[1721229308041,1.25807046,3465.2,3465.0,2.88593]
[1721229308250,1.25807046,3465.2,3465.1,5.77182]
[1721229308452,0.60315831,3465.5,3465.1,3.7833738]
[1721229308752,1.2580244,3465.4,3465.3,2.88572]
[1721229308949,1.86118271,3465.4,3465.1,3.7833138]
[1721229309162,1.2580244,3465.3,3465.2,2.88582]
[1721229310053,1.25804706,3465.3,3465.2,2.88582]
[1721229310417,1.25804706,3465.3,3464.9,3.708048]
[1721229310629,0.60315831,3465.2,3464.7,2.88618]
[1721229310827,1.86120537,3465.1,3464.7,2.88618]
[1721229311034,1.25804706,3465.0,3464.8,2.88616]
[1721229311345,1.25804706,3465.0,3464.8,2.88615]
[1721229311878,1.25804706,3465.0,3464.7,2.88618]
[1721229312037,1.25804706,3464.9,3464.5,2.88634]
[1721229312362,1.86120537,3464.8,3463.9,2.88688]
[1721229312560,1.86120537,3464.8,3463.7,2.88701]
[1721229312561,0.60315831,3464.4,3463.7,2.88701]
[1721229312724,1.25804706,3464.3,3463.9,2.88684]
[1721229312921,1.25846792,3464.2,3463.9,2.88684]
[1721229313168,0.60315831,3464.4,3463.9,2.88684]
[1721229313368,1.25846914,3464.3,3463.9,2.88684]
[1721229313549,1.25846914,3464.3,3463.9,3.27848391]
[1721229313747,1.25846914,3464.3,3464.0,2.88683]
[1721229313971,0.60315831,3464.4,3463.9,3.27853391]
[1721229314185,1.2584619,3464.3,3463.9,3.27853391]
[1721229315383,1.2584619,3464.3,3463.9,0.39164391]
[1721229315534,1.86162021,3464.3,3463.6,2.88715]
[1721229315741,1.86162021,3464.2,3463.7,2.88706]
[1721229315961,1.25857226,3464.1,3463.7,2.88706]
[1721229316166,1.25857109,3464.0,3463.7,2.88706]
[1721229316374,0.60315831,3464.2,3463.7,2.88706]
[1721229316576,1.25858199,3464.1,3463.7,3.709244]
[1721229316779,0.60315831,3464.3,3463.8,2.88698]
[1721229317096,1.25853497,3464.2,3463.7,0.822224]
[1721229317279,4.14524497,3464.2,3463.5,2.448]
[1721229317446,4.79499516,3464.1,3463.3,2.88741]
[1721229317644,4.79499516,3464.1,3463.4,2.88732]
[1721229317645,1.86183453,3464.0,3463.4,2.88732]
[1721229317881,1.25867622,3463.9,3463.4,2.88732]
[1721229318041,1.30519031,3463.9,3463.4,2.88732]
[1721229318263,0.04651409,3463.9,3463.4,3.7096]
[1721229318689,3.48996831,3464.1,3463.4,3.7096]
[1721229319003,1.25868366,3464.0,3463.4,3.7096]
[1721229319313,1.25868366,3464.0,3462.8,2.88775]
[1721229319314,2.8873,3463.5,3462.5,10.28805]
[1721229319612,4.14620852,3463.4,3462.7,2.8879]
[1721229319905,1.25887852,3463.3,3462.8,2.88782]
[1721229320220,3.79203747,3463.5,3462.8,2.88782]
[1721229320221,0.04631811,3463.2,3463.0,2.88759]
[1721229320564,3.49023831,3463.7,3463.0,2.88759]
[1721229320887,0.04622993,3463.1,3463.0,2.88759]
[1721229321200,0.04624587,3463.1,3463.0,2.88759]
[1721229321388,2.88708,3463.7,3463.0,2.88759]
[1721229321703,0.60315831,3463.9,3463.1,2.88757]
[1721229321902,4.19232676,3463.8,3463.1,2.88757]
[1721229322088,4.19232676,3463.8,3462.9,2.88768]
[1721229322089,4.14591146,3463.7,3462.9,2.88768]
[1721229322268,3.53668473,3463.8,3462.9,2.88768]
[1721229322269,2.93360243,3463.6,3462.9,2.88768]
[1721229322467,5.32776,3463.5,3462.7,2.88788]
[1721229322673,5.32776,3463.5,3462.8,2.88783]
[1721229322875,0.04631685,3463.4,3462.8,2.88783]
[1721229323604,2.93371685,3463.4,3462.7,0.577596]
[1721229323773,2.88742,3463.3,3462.4,2.8881]
[1721229323969,2.93336842,3463.3,3462.5,2.88808]
[1721229324277,2.8875,3463.2,3462.5,2.88808]
[1721229324479,2.8875,3463.2,3462.0,5.88847]
[1721229324480,2.88767,3463.0,3462.0,5.88847]
[1721229324798,2.88791,3462.8,3461.9,2.8885]
[1721229324972,2.88791,3462.8,3461.8,5.33663]
[1721229324973,2.88792,3462.7,3462.0,2.88848]
[1721229325305,2.93381241,3462.7,3462.0,2.88848]
[1721229326072,2.93381241,3462.7,3462.0,2.8885]
[1721229326688,0.04589241,3462.7,3462.1,2.88841]
[1721229326895,0.04589241,3462.7,3462.2,3.466019]
[1721229327174,2.335,3462.9,3462.4,2.88813]
[1721229327518,0.04578268,3462.6,3462.5,2.88808]
[1721229327714,2.2916,3463.3,3462.8,2.88777]
[1721229327925,2.2916,3463.3,3462.7,2.88791]
[1721229328223,0.04570199,3463.2,3462.5,2.448]
[1721229328435,2.88766,3463.1,3462.4,2.88815]
[1721229328589,2.88766,3463.1,3462.5,2.88808]
[1721229328773,0.04520954,3463.0,3462.5,2.88808]
[1721229329115,2.88763,3463.1,3462.5,3.5234879]
[1721229329285,2.2916,3463.3,3462.5,3.5234879]
[1721229329286,0.04521222,3463.0,3462.5,3.5234879]
[1721229329513,2.2916,3463.3,3462.5,3.5234879]
[1721229329514,2.88751,3463.2,3462.5,3.5234879]
[1721229329862,2.93282624,3463.1,3462.5,3.5234879]
[1721229330008,0.04522624,3463.1,3462.5,3.5234879]
[1721229330200,5.17907,3463.3,3462.6,0.64117179]
[1721229330404,0.04564963,3463.0,3462.9,2.88775]
[1721229330753,0.04561774,3463.0,3462.9,2.88775]
[1721229330914,2.8873,3463.5,3462.9,2.88775]
[1721229331241,0.04530516,3463.4,3462.9,2.88775]
[1721229331601,0.04530516,3463.4,3462.7,2.88784]
[1721229331602,2.93265516,3463.4,3462.7,2.88791]
[1721229332702,0.04530516,3463.4,3462.8,2.88782]
[1721229332900,2.2916,3463.8,3462.8,2.88782]
[1721229332901,5.17862,3463.8,3462.8,0.822373]
[1721229333219,3.04542067,3463.7,3463.2,2.88749]
[1721229333419,0.04542067,3463.7,3463.6,2.88716]
[1721229333616,9.6168,3464.7,3463.4,4.7474]
[1721229333838,9.6168,3464.7,3464.0,2.88678]
[1721229333839,5.1831,3464.7,3464.0,2.88678]
[1721229334151,5.1831,3464.7,3463.8,2.88696]
[1721229334521,5.1831,3464.7,3464.0,2.88678]
[1721229335051,2.88659,3464.3,3463.6,2.88716]
[1721229335925,2.88676,3464.1,3463.4,2.88731]
[1721229336138,2.88676,3464.1,3463.3,2.88739]
[1721229336510,2.88684,3464.0,3463.3,2.88739]
[1721229337327,2.345,3464.2,3463.1,2.88758]
[1721229337328,2.88705,3463.8,3463.1,2.88752]
[1721229338415,2.345,3464.2,3463.5,2.88718]
[1721229338716,2.345,3464.2,3463.6,2.8871]
[1721229338924,5.23168,3464.2,3463.3,2.88734]
[1721229339363,2.88691,3464.0,3463.3,2.88734]
[1721229340787,5.77363,3464.1,3463.3,2.88735]
[1721229341052,2.345,3464.2,3463.6,2.8871]
[1721229341250,2.345,3464.2,3463.7,2.88706]
[1721229344557,2.345,3464.2,3463.5,2.88719]
[1721229344945,2.345,3464.2,3463.6,2.88716]
[1721229345116,2.345,3464.2,3463.3,3.709673]
[1721229345320,2.345,3464.2,3463.0,2.448]
[1721229345321,2.88685,3464.0,3463.4,2.88733]
[1721229345761,2.88678,3464.1,3463.4,2.88733]
[1721229345961,2.88678,3464.1,3463.5,2.88725]
[1721229346566,2.345,3464.2,3463.5,2.88725]
[1721229346737,5.23169,3464.2,3463.6,2.88716]
[1721229348124,2.93161834,3464.1,3463.4,2.88729]
[1721229348338,2.93161834,3464.1,3463.2,2.88746]
[1721229348339,2.88689,3464.0,3463.2,2.88744]
[1721229348537,2.88722,3463.6,3462.8,3.18840792]
[1721229348783,2.88722,3463.6,3462.7,2.88791]
[1721229348784,2.3677,3463.5,3462.7,2.88791]
[1721229348945,2.41238945,3463.5,3462.7,2.88791]
[1721229349138,2.88738,3463.4,3462.6,2.88799]
[1721229349338,2.93138399,3463.4,3462.6,2.88799]
[1721229349764,2.88742,3463.3,3462.6,2.88799]
[1721229349966,2.93212119,3463.3,3462.6,2.88799]
[1721229350137,2.88751,3463.2,3462.4,2.88814]
[1721229350342,2.4216,3463.0,3462.4,2.88814]
[1721229350877,0.04438568,3462.9,3462.4,2.88814]
[1721229351045,0.04438568,3462.9,3462.2,2.88827]
[1721229351244,2.93213568,3462.9,3462.3,2.88825]
[1721229352338,0.04438568,3462.9,3462.4,2.8881]
[1721229352859,0.04438568,3462.9,3462.3,3.465902]
[1721229352860,0.04438568,3462.9,3462.5,2.88807]
[1721229353256,0.04438568,3462.9,3462.6,2.88797]
[1721229353472,2.88743,3463.3,3462.7,2.88791]
[1721229353667,0.04433974,3462.8,3462.7,2.88791]
[1721229353878,8.15113,3463.4,3462.7,3.465508]
[1721229354189,2.2638,3463.4,3462.9,2.88775]
[1721229354477,7.92315831,3463.8,3462.4,2.4231]
[1721229354478,0.04430703,3463.3,3463.1,2.88758]
[1721229354871,2.2638,3463.8,3463.4,2.88729]
[1721229355244,2.2638,3463.8,3463.2,5.77493]
[1721229355483,2.2638,3463.8,3463.0,5.33563]
[1721229355655,2.2638,3463.8,3463.2,2.88745]
[1721229356865,2.2638,3463.8,3463.3,2.8874]
[1721229357271,1.25873513,3463.7,3463.3,2.8874]
[1721229357482,1.25873513,3463.7,3463.4,2.88732]
[1721229357980,3.0,3464.0,3463.4,2.88732]
[1721229358279,1.25870416,3463.9,3463.5,2.88721]
[1721229358445,3.60315831,3464.1,3463.5,2.88721]
[1721229358647,1.25867091,3464.0,3463.5,2.88721]
[1721229359056,1.86182922,3464.0,3463.5,2.88721]
[1721229359386,1.25867091,3463.9,3463.3,2.8874]
[1721229359612,2.4732,3463.7,3463.0,5.33562]
[1721229359893,2.4732,3463.7,3462.8,2.88783]
[1721229359894,2.88731,3463.5,3462.8,2.88783]
[1721229360204,1.25883707,3463.4,3462.7,0.30063163]
[1721229360352,1.25883707,3463.4,3462.8,2.88776]
[1721229360555,4.14617707,3463.4,3462.8,2.88776]
[1721229360767,1.25886963,3463.3,3462.8,2.88776]
[1721229360982,1.25886772,3463.3,3462.8,2.88776]
[1721229361313,2.88724,3463.6,3462.9,2.88774]
[1721229361466,5.96347831,3463.7,3463.3,2.88741]
[1721229361467,1.25885287,3463.5,3463.3,2.88741]
[1721229361793,0.60315831,3464.0,3463.4,2.88731]
[1721229361996,1.25868487,3463.9,3463.3,2.88739]
[1721229362196,1.86184318,3463.9,3463.4,2.88733]
[1721229362517,1.30304529,3463.8,3463.4,2.88733]
[1721229362723,1.25869767,3463.7,3463.4,2.88733]
[1721229362926,0.04436042,3463.8,3463.6,2.88715]
[1721229363071,0.04436042,3463.8,3463.4,3.025472]
[1721229363072,0.04436042,3463.8,3463.7,5.77416]
[1721229363423,0.60315831,3464.5,3463.9,2.88684]
[1721229363623,1.25849797,3464.4,3464.0,2.88683]
[1721229363993,3.48953831,3464.6,3463.7,2.88705]
[1721229363994,1.25849762,3464.3,3463.7,2.88705]
[1721229364208,1.25852476,3464.2,3463.7,2.88705]
[1721229364529,1.25852476,3464.2,3463.3,2.88736]
[1721229364530,2.3269,3464.0,3463.3,2.88736]
[1721229364681,3.49025831,3463.7,3462.9,2.88775]
[1721229364884,1.86181657,3463.6,3463.1,2.88757]
[1721229365100,0.60315831,3463.7,3463.1,2.88757]
[1721229365414,1.25876588,3463.6,3463.1,2.88757]
[1721229365624,3.49018831,3463.8,3463.1,2.88757]
[1721229365784,1.25874179,3463.7,3463.1,2.88757]
[1721229365983,1.25874179,3463.7,3463.1,3.4939795]
[1721229366180,1.2587691,3463.6,3463.1,3.4939795]
[1721229366489,1.2587691,3463.6,3463.1,2.88757]
[1721229367121,0.60315831,3463.8,3463.1,5.77509]
[1721229367315,0.60315831,3463.8,3463.1,2.88752]
[1721229367316,1.25873236,3463.7,3463.1,2.88752]
[1721229367632,4.14582236,3463.7,3462.9,3.176455]
[1721229367829,1.86189067,3463.6,3462.9,2.88768]
[1721229368140,1.25873236,3463.5,3462.8,0.30007478]
[1721229368346,1.25873236,3463.5,3462.7,2.88791]
[1721229368347,2.88742,3463.3,3462.7,2.88791]
[1721229368574,2.88763,3463.1,3462.3,3.18814932]
[1721229368725,2.88763,3463.1,3462.4,2.88812]
[1721229369167,2.88767,3463.0,3462.3,0.61879425]
[1721229369488,2.88767,3463.0,3461.9,10.28857]
[1721229369489,0.60315831,3462.8,3461.9,10.28857]
[1721229369622,0.60315831,3462.8,3462.0,2.8885]
[1721229369623,2.88798,3462.7,3462.0,2.8885]
[1721229369825,1.2591569,3462.6,3462.0,2.8885]
[1721229370382,4.75032521,3462.6,3461.9,2.88857]
[1721229370594,4.32691521,3462.5,3461.1,2.448]
[1721229370746,0.60315831,3462.2,3460.9,2.88939]
[1721229370952,2.88884,3461.6,3461.1,0.29975322]
[1721229371265,2.88884,3461.6,3460.8,2.88944]
[1721229371588,2.4646,3461.7,3461.0,2.88933]
[1721229371733,5.35337,3461.7,3461.0,2.88933]
[1721229371922,2.4646,3461.7,3461.0,2.88933]
[1721229372124,5.35335,3461.7,3461.1,2.88924]
[1721229372354,2.88884,3461.6,3460.9,3.178294]
[1721229372540,2.88872,3461.8,3461.0,3.7409074]
[1721229372927,2.88872,3461.8,3461.1,2.88925]
[1721229373576,2.88842,3462.1,3461.2,5.33715]
[1721229373869,3.0,3462.0,3461.4,2.88899]
[1721229374027,3.0,3462.0,3461.5,2.88891]
[1721229374228,5.19524,3462.2,3461.5,2.88891]
[1721229374229,3.0,3462.1,3461.5,2.88891]